{"text_format":"1","workbook":"xlsx","n_sheets":2,"sheets":["MDT","Options"],"not_rendered":{"charts":0,"images":0,"macros":1,"external_links":0,"defined_names":33,"comments":0,"pivot_tables":0},"unopened":[],"bounds":{"document_bytes":16777216,"sheet_cells":100000,"rows_first":2000,"rows_last":500,"rows_between":2000,"halvings":0,"cell_chars":16384,"cell_head_chars":4096},"cells_cut":0,"cells_raw":0,"read":"whole","date_system":"1900"}

{"sheet":"MDT","index":0,"n_rows":106,"n_cols":8,"rows_kept":106,"cut":false,"hidden":false,"merged":[[86,4,86,6],[95,4,95,6],[100,4,100,6],[72,4,72,5],[74,4,74,5],[73,4,73,5],[82,4,82,6]]}
[]
[]
[]
[]
[]
[]
[]
[]
[]
[]
[]
[]
[]
[]
[]
[]
[]
[]
[]
[]
[]
[]
[]
[]
[]
[]
[]
[]
[]
[]
[]
[]
[]
[]
[]
[]
[]
[]
[]
[]
[]
[]
[]
[]
[]
[]
[]
[]
[]
[]
[]
[]
[]
[]
[]
[]
[]
[]
[]
[]
[]
[]
[]
[]
[]
[]
[]
[]
[]
[]
[]
[null,null,null,null,"№","Показатель","% выполнения","% затраченного времени"]
[null,null,null,null,"Общий итог",null,{"$f":"Options!Q2","v":"-"},{"$f":"Options!R2","v":"-"}]
[null,null,null,null,"Умственное развитие",null,{"$f":"IFERROR(IF(TESTING_FLAG,INDEX(table_MD[Умственное развитие],MATCH(SCORE_TOTAL,INDEX(table_MD[[1]:[3]],,LEVEL_TESTING),1),1),\"-\"),\"-\")","v":"-"}]
[null,null,null,null,"Субтест"]
[null,null,null,null,1,"Осведомлённость I",{"$f":"table_SubTests[[% выполнения]:[% затраченного времени]]","v":"-"},"-"]
[null,null,null,null,2,"Осведомлённость II","-","-"]
[null,null,null,null,3,"Аналогии","-","-"]
[null,null,null,null,4,"Классификация","-","-"]
[null,null,null,null,5,"Обобщение","-","-"]
[null,null,null,null,6,"Ряды","-","-"]
[]
[null,null,null,null,"Тип осведомлённости"]
[null,null,null,null,1,"Общественно-политическая осведомленность",{"$f":"IF(TESTING_FLAG,SUM(IF(SubTests[№_ТипОсведомлённости]=$E84,IF(SubTests[Правильный ответ]=SubTests[Ответ],SubTests[Макс_Балл],0),0))/SUM(IF(SubTests[№_ТипОсведомлённости]=$E84,SubTests[Макс_Балл],0)),\"-\")","v":"-"}]
[null,null,null,null,2,"Hаучно-культурная осведомленность",{"$f":"IF(TESTING_FLAG,SUM(IF(SubTests[№_ТипОсведомлённости]=$E85,IF(SubTests[Правильный ответ]=SubTests[Ответ],SubTests[Макс_Балл],0),0))/SUM(IF(SubTests[№_ТипОсведомлённости]=$E85,SubTests[Макс_Балл],0)),\"-\")","v":"-"}]
[]
[null,null,null,null,"Тип логической связи"]
[null,null,null,null,1,"Род - вид",{"$f":"IF(TESTING_FLAG,SUM(IF(SubTests[№_ТипЛогическойСвязи]=$E88,IF(SubTests[Правильный ответ]=SubTests[Ответ],SubTests[Макс_Балл],0),0))/SUM(IF(SubTests[№_ТипЛогическойСвязи]=$E88,SubTests[Макс_Балл],0)),\"-\")","v":"-"}]
[null,null,null,null,2,"Часть - целое",{"$f":"IF(TESTING_FLAG,SUM(IF(SubTests[№_ТипЛогическойСвязи]=$E89,IF(SubTests[Правильный ответ]=SubTests[Ответ],SubTests[Макс_Балл],0),0))/SUM(IF(SubTests[№_ТипЛогическойСвязи]=$E89,SubTests[Макс_Балл],0)),\"-\")","v":"-"}]
[null,null,null,null,3,"Причина - следствие",{"$f":"IF(TESTING_FLAG,SUM(IF(SubTests[№_ТипЛогическойСвязи]=$E90,IF(SubTests[Правильный ответ]=SubTests[Ответ],SubTests[Макс_Балл],0),0))/SUM(IF(SubTests[№_ТипЛогическойСвязи]=$E90,SubTests[Макс_Балл],0)),\"-\")","v":"-"}]
[null,null,null,null,4,"Противоположность",{"$f":"IF(TESTING_FLAG,SUM(IF(SubTests[№_ТипЛогическойСвязи]=$E91,IF(SubTests[Правильный ответ]=SubTests[Ответ],SubTests[Макс_Балл],0),0))/SUM(IF(SubTests[№_ТипЛогическойСвязи]=$E91,SubTests[Макс_Балл],0)),\"-\")","v":"-"}]
[null,null,null,null,5,"Порядок следования",{"$f":"IF(TESTING_FLAG,SUM(IF(SubTests[№_ТипЛогическойСвязи]=$E92,IF(SubTests[Правильный ответ]=SubTests[Ответ],SubTests[Макс_Балл],0),0))/SUM(IF(SubTests[№_ТипЛогическойСвязи]=$E92,SubTests[Макс_Балл],0)),\"-\")","v":"-"}]
[null,null,null,null,6,"Родоположенность",{"$f":"IF(TESTING_FLAG,SUM(IF(SubTests[№_ТипЛогическойСвязи]=$E93,IF(SubTests[Правильный ответ]=SubTests[Ответ],SubTests[Макс_Балл],0),0))/SUM(IF(SubTests[№_ТипЛогическойСвязи]=$E93,SubTests[Макс_Балл],0)),\"-\")","v":"-"}]
[null,null,null,null,7,"Функциональные отношения",{"$f":"IF(TESTING_FLAG,SUM(IF(SubTests[№_ТипЛогическойСвязи]=$E94,IF(SubTests[Правильный ответ]=SubTests[Ответ],SubTests[Макс_Балл],0),0))/SUM(IF(SubTests[№_ТипЛогическойСвязи]=$E94,SubTests[Макс_Балл],0)),\"-\")","v":"-"}]
[]
[null,null,null,null,"Тип задания"]
[null,null,null,null,1,"Задания с абстрактными понятиями",{"$f":"IF(TESTING_FLAG,SUM(IF(SubTests[№_ТипЗадания]=$E97,IF(SubTests[Правильный ответ]=SubTests[Ответ],SubTests[Макс_Балл],0),0))/SUM(IF(SubTests[№_ТипЗадания]=$E97,SubTests[Макс_Балл],0)),\"-\")","v":"-"}]
[null,null,null,null,2,"Смешанные задания",{"$f":"IF(TESTING_FLAG,SUM(IF(SubTests[№_ТипЗадания]=$E98,IF(SubTests[Правильный ответ]=SubTests[Ответ],SubTests[Макс_Балл],0),0))/SUM(IF(SubTests[№_ТипЗадания]=$E98,SubTests[Макс_Балл],0)),\"-\")","v":"-"}]
[null,null,null,null,3,"Задания с конкретными понятиями",{"$f":"IF(TESTING_FLAG,SUM(IF(SubTests[№_ТипЗадания]=$E99,IF(SubTests[Правильный ответ]=SubTests[Ответ],SubTests[Макс_Балл],0),0))/SUM(IF(SubTests[№_ТипЗадания]=$E99,SubTests[Макс_Балл],0)),\"-\")","v":"-"}]
[]
[null,null,null,null,"Дисциплина"]
[null,null,null,null,1,"Литература, русский язык",{"$f":"IF(TESTING_FLAG,SUM(IF(SubTests[№_Дисциплина]=$E102,IF(SubTests[Правильный ответ]=SubTests[Ответ],SubTests[Макс_Балл],0),0))/SUM(IF(SubTests[№_Дисциплина]=$E102,SubTests[Макс_Балл],0)),\"-\")","v":"-"}]
[null,null,null,null,2,"Математика, физика",{"$f":"IF(TESTING_FLAG,SUM(IF(SubTests[№_Дисциплина]=$E103,IF(SubTests[Правильный ответ]=SubTests[Ответ],SubTests[Макс_Балл],0),0))/SUM(IF(SubTests[№_Дисциплина]=$E103,SubTests[Макс_Балл],0)),\"-\")","v":"-"}]
[null,null,null,null,3,"История",{"$f":"IF(TESTING_FLAG,SUM(IF(SubTests[№_Дисциплина]=$E104,IF(SubTests[Правильный ответ]=SubTests[Ответ],SubTests[Макс_Балл],0),0))/SUM(IF(SubTests[№_Дисциплина]=$E104,SubTests[Макс_Балл],0)),\"-\")","v":"-"}]
[null,null,null,null,4,"Биология",{"$f":"IF(TESTING_FLAG,SUM(IF(SubTests[№_Дисциплина]=$E105,IF(SubTests[Правильный ответ]=SubTests[Ответ],SubTests[Макс_Балл],0),0))/SUM(IF(SubTests[№_Дисциплина]=$E105,SubTests[Макс_Балл],0)),\"-\")","v":"-"}]
[null,null,null,null,5,"География",{"$f":"IF(TESTING_FLAG,SUM(IF(SubTests[№_Дисциплина]=$E106,IF(SubTests[Правильный ответ]=SubTests[Ответ],SubTests[Макс_Балл],0),0))/SUM(IF(SubTests[№_Дисциплина]=$E106,SubTests[Макс_Балл],0)),\"-\")","v":"-"}]

{"sheet":"Options","index":1,"n_rows":137,"n_cols":28,"rows_kept":137,"cut":false,"hidden":true,"merged":[[2,1,2,4]]}
[]
[null,null,null,null,null,null,null,null,null,{"$f":"SUBTOTAL(9,table_SubTests[МаксБалл])","v":138},{"$f":"SUBTOTAL(9,table_SubTests[Время])","v":2640},{"$f":"SUBTOTAL(9,table_SubTests[КолВопросов])","v":119},null,null,{"$f":"SUBTOTAL(9,table_SubTests[Результат_баллы])","v":0},{"$f":"SUBTOTAL(9,table_SubTests[Результат_время])","v":0},{"$f":"IF(TESTING_FLAG,SCORE_TOTAL/SCORE_MAX_TOTAL,\"-\")","v":"-"},{"$f":"IF(TESTING_FLAG,TIME_TOTAL/TIME_MAX_TOTAL,\"-\")","v":"-"}]
[null,"Параметры тестирования",null,null,null,null,"№","Субтест","Описание","МаксБалл","Время","КолВопросов","Пример1","Пример2","Результат_баллы","Результат_время","% выполнения","% затраченного времени","Тип осведомлённости","1","2","3","Умственное развитие"]
[null,"Уровень тестирования",1,"Вопрос",{"$f":"IFERROR(INDEX(SubTests[Вопрос],ANSWER_RowNum,1),\"\")","v":""},null,1,"Осведомлённость I","Задания состоят из предложений вопросительного характера. В каждом из них не хватает одного слова. Вы  должны из пяти приведенных слов выбрать то, которое правильно дополняет данное предложение. Выбрать можно только одно слово.",20,480,20,"Пpимеp №1\nОдинаковыми по смыслу являются слова «биогpафия» и  ...?\n1) случай,   2) подвиг,   3) жизнеописание,   4) книга,   5) писатель. \nПравильным ответом будет слово «жизнеописание».","Пpимеp №2\nПротивоположным к слову «отрицательный» будет слово …? \n1) неудачный,  2) спорный, 3) важный,  4) случайный,  5) положительный. \nВ этом случае правильным ответом является слово  «положительный».",{"$f":"IFERROR(SUMIF(SubTests[Субтест_№],table_SubTests[[#This Row],[№]],SubTests[Балл]),-1)","v":0},0,{"$f":"IF(TESTING_FLAG,table_SubTests[[#This Row],[Результат_баллы]]/table_SubTests[[#This Row],[МаксБалл]],\"-\")","v":"-"},{"$f":"IF(TESTING_FLAG,table_SubTests[[#This Row],[Результат_время]]/table_SubTests[[#This Row],[Время]],\"-\")","v":"-"},null,0,0,0,"Низкое"]
[null,"Номер субтеста",0,"Ответ 1",{"$f":"IFERROR(IF(INDEX(SubTests[Ответ1],ANSWER_RowNum,1)=\"\",\"\",INDEX(SubTests[Ответ1],ANSWER_RowNum,1)),\"\")","v":""},null,2,"Осведомлённость II","K слову, которое стоит в первой строке, надо подобрать из четырех предложенных слов такое, которое совпадало бы с ним по смыслу, то есть слово синоним. Выбpать можно только одно слово.",20,240,20,"Пpимеp №1\nВек – 1) история,   2) столетие,    3) событие,    4) прогресс. \nПравильным ответом будет слово «столетие».\n","Пpимеp №2\nПрогноз – 1) погода, 2) донесение, 3) предсказание, 4) причина. \nВ этом случае правильным ответом является слово  «предсказание».",{"$f":"IFERROR(SUMIF(SubTests[Субтест_№],table_SubTests[[#This Row],[№]],SubTests[Балл]),-1)","v":0},0,{"$f":"IF(TESTING_FLAG,table_SubTests[[#This Row],[Результат_баллы]]/table_SubTests[[#This Row],[МаксБалл]],\"-\")","v":"-"},{"$f":"IF(TESTING_FLAG,table_SubTests[[#This Row],[Результат_время]]/table_SubTests[[#This Row],[Время]],\"-\")","v":"-"},null,30,40,45,"Ниже среднего"]
[null,"Номер вопроса",null,"Ответ 2",{"$f":"IFERROR(IF(INDEX(SubTests[Ответ2],ANSWER_RowNum,1)=\"\",\"\",INDEX(SubTests[Ответ2],ANSWER_RowNum,1)),\"\")","v":""},null,3,"Аналогии","Вам предлагаются три слова. Между первым и вторым словами существует определенная связь. Между третьим и одним из пяти слов, предлагаемых на выбор, существует аналогичная, та же самая связь. Выбрать можно только одно слово.",25,600,25,"Пpимеp №1\nпесня – композитор : самолет  – … \n1) аэропорт,  2) полет,  3) конструктор, 4) горючее, 5) истребитель.\nПравильным ответом будет слово  «конструктор».","Пpимеp №2\nдобро – зло : день – …\n1) солнце,  2) ночь,   3) неделя, 4) среда,  5) сутки.\nВ этом случае правильным ответом является слово  «ночь».",{"$f":"IFERROR(SUMIF(SubTests[Субтест_№],table_SubTests[[#This Row],[№]],SubTests[Балл]),-1)","v":0},0,{"$f":"IF(TESTING_FLAG,table_SubTests[[#This Row],[Результат_баллы]]/table_SubTests[[#This Row],[МаксБалл]],\"-\")","v":"-"},{"$f":"IF(TESTING_FLAG,table_SubTests[[#This Row],[Результат_время]]/table_SubTests[[#This Row],[Время]],\"-\")","v":"-"},null,50,65,75,"Среднее"]
[null,"ID",{"$f":"IF(QUESTION_NUM>0,SUBTEST_NUM*100+QUESTION_NUM,0)","v":0},"Ответ 3",{"$f":"IFERROR(IF(INDEX(SubTests[Ответ3],ANSWER_RowNum,1)=\"\",\"\",INDEX(SubTests[Ответ3],ANSWER_RowNum,1)),\"\")","v":""},null,4,"Классификация","Вам предлагаются пять слов. Четыре из них объединены одним общим признаком. Пятое слово к ним не подходит. Его нужно найти и выбрать. Выбрать можно только одно слово.",20,420,20,"Пример №1\n1) тарелка,   2) чашка,    3) стол,    4) кастрюля,    5) чайник. \nПервое, второе, четвертое и пятое слова обозначают посуду, а третье слово – мебель. \nПравильным ответом будет слово «мебель».","Пример №2\n1) идти,   2) прыгать,   3) танцевать,   4) сидеть,    5) бежать.\nЧетыре слова обозначают состояние движения, а слово «сидеть» – покоя.\nПоэтому правильным ответом является слово «сидеть».",{"$f":"IFERROR(SUMIF(SubTests[Субтест_№],table_SubTests[[#This Row],[№]],SubTests[Балл]),-1)","v":0},0,{"$f":"IF(TESTING_FLAG,table_SubTests[[#This Row],[Результат_баллы]]/table_SubTests[[#This Row],[МаксБалл]],\"-\")","v":"-"},{"$f":"IF(TESTING_FLAG,table_SubTests[[#This Row],[Результат_время]]/table_SubTests[[#This Row],[Время]],\"-\")","v":"-"},null,75,90,100,"Выше среднего"]
[null,"Номер стороки таблицы",{"$f":"IFERROR(MATCH(QUESTION_ID,SubTests[ID],0),0)","v":0},"Ответ 4",{"$f":"IFERROR(IF(INDEX(SubTests[Ответ4],ANSWER_RowNum,1)=\"\",\"\",INDEX(SubTests[Ответ4],ANSWER_RowNum,1)),\"\")","v":""},null,5,"Обобщение","Вам предлагаются два слова. Нужно определить, что между ними общего, и из трех предложенных признаков выбрать тот, который отражает наиболее существенные общие признаки обоих слов. Выбрать можно только один признак.",38,480,19,"Пример №1\nЕль – сосна.    1) ель,   2) хвойные деревья,   3) кустарники.\nПравильным ответом будет слово «хвойные деревья».","Пример №2\nДождь  –  град.  1) природные явления,  2) климат,   3) осадки.\nВ этом случае правильным ответом является слово «осадки».",{"$f":"IFERROR(SUMIF(SubTests[Субтест_№],table_SubTests[[#This Row],[№]],SubTests[Балл]),-1)","v":0},0,{"$f":"IF(TESTING_FLAG,table_SubTests[[#This Row],[Результат_баллы]]/table_SubTests[[#This Row],[МаксБалл]],\"-\")","v":"-"},{"$f":"IF(TESTING_FLAG,table_SubTests[[#This Row],[Результат_время]]/table_SubTests[[#This Row],[Время]],\"-\")","v":"-"},null,106,121,131,"Высокое"]
[null,"Количество вопросов",{"$f":"IF(SUBTEST_NUM>0,INDEX(table_SubTests[КолВопросов],SUBTEST_NUM,1),\"\")","v":""},"Ответ 5",{"$f":"IFERROR(IF(INDEX(SubTests[Ответ5],ANSWER_RowNum,1)=\"\",\"\",INDEX(SubTests[Ответ5],ANSWER_RowNum,1)),\"\")","v":""},null,6,"Ряды","Вам предлагаются ряды чисел, расположенных по определенному правилу. Ваша задача состоит в том, чтобы определить число, которое было бы продолжением соответствующего ряда и ввести его. Выбрать можно только одно число. Каждый ряд построен по своему правилу. В некоторых заданиях при нахождении правила построения ряда вам необходимо будет пользоваться умножением, делением и другими действиями.",15,420,15,"Пример №1\n2   4   6   8   10  … \nВ этом ряду каждое последующее число на 2 больше предыдущего. Поэтому следует ввести число 12, которое и будет следующим числом. Введите число 12 с клавиатуры.","Пример №2\n7  10  8  11  9  12  … \nВ этом ряду поочередно отнимается 2 и прибавляется 3. Следующим числом должно быть число 10. Введите число 10 с клавиатуры.",{"$f":"IFERROR(SUMIF(SubTests[Субтест_№],table_SubTests[[#This Row],[№]],SubTests[Балл]),-1)","v":0},0,{"$f":"IF(TESTING_FLAG,table_SubTests[[#This Row],[Результат_баллы]]/table_SubTests[[#This Row],[МаксБалл]],\"-\")","v":"-"},{"$f":"IF(TESTING_FLAG,table_SubTests[[#This Row],[Результат_время]]/table_SubTests[[#This Row],[Время]],\"-\")","v":"-"}]
[null,"Время выполнения ",{"$f":"IF(SUBTEST_NUM>0,INDEX(table_SubTests[Время],SUBTEST_NUM,1)/60,\"\")","v":""},"Ответ №",0]
[null,"Текущее время",null,"Флаг тестирования",{"$f":"COUNTIF(table_SubTests[Результат_время],\"0\")=0","v":false}]
[null,"Субтест",{"$f":"IFERROR(IF(SUBTEST_NUM>0,\"Субтест №\" & TEXT(SUBTEST_NUM,\"0\") & \". \"& INDEX(table_SubTests[Субтест],SUBTEST_NUM,1),\"\"),\"\")","v":""}]
[null,"Описание",{"$f":"IFERROR(INDEX(table_SubTests[Описание],SUBTEST_NUM,1),\"\")","v":""}]
[null,"Пример №1",{"$f":"IFERROR(IF(QUESTION_NUM>0,\"\",INDEX(table_SubTests[Пример1],SUBTEST_NUM,1)),\"\")","v":""}]
[null,"Пример №2",{"$f":"IFERROR(IF(QUESTION_NUM>0,\"\",INDEX(table_SubTests[Пример2],SUBTEST_NUM,1)),\"\")","v":""}]
[]
[]
[null,"Вопрос_№","Субтест_№","ID","Вопрос","Ответ1","Ответ2","Ответ3","Ответ4","Ответ5","Правильный ответ","Балл1","Балл2","Балл3","Балл4","Балл5","Макс_Балл","Ответ","Балл","№_ТипОсведомлённости","№_ТипЛогическойСвязи","№_ТипЗадания","№_Дисциплина","Субтест","Тип осведомлённости","Дисциплина","Тип логической связи","Тип задания"]
[null,1,1,{"$f":"SubTests[[#This Row],[Субтест_№]]*100+SubTests[[#This Row],[Вопрос_№]]","v":101},"Начальные буквы имени и отчества называются ...?","вензель","инициалы","автограф","индекс","анаграмма",2,0,1,0,0,0,1,null,{"$f":"IFERROR(INDEX(SubTests[[#This Row],[Балл1]:[Балл5]],1,SubTests[[#This Row],[Ответ]]),0)","v":0},2,0,0,0,"Осведомлённость I","Hаучно-культурная осведомленность"]
[null,2,1,{"$f":"SubTests[[#This Row],[Субтест_№]]*100+SubTests[[#This Row],[Вопрос_№]]","v":102},"Гуманный - это ...?","общественный","человечный","профессиональный","агрессивный","пренебрежительный",2,0,1,0,0,0,1,null,{"$f":"IFERROR(INDEX(SubTests[[#This Row],[Балл1]:[Балл5]],1,SubTests[[#This Row],[Ответ]]),0)","v":0},1,0,0,0,"Осведомлённость I","Общественно-политическая осведомленность"]
[null,3,1,{"$f":"SubTests[[#This Row],[Субтест_№]]*100+SubTests[[#This Row],[Вопрос_№]]","v":103},"Система взглядов на природу и общество есть ...?","мечта","оценка","мировоззрение","кругозор","иллюзия",3,0,0,1,0,0,1,null,{"$f":"IFERROR(INDEX(SubTests[[#This Row],[Балл1]:[Балл5]],1,SubTests[[#This Row],[Ответ]]),0)","v":0},2,0,0,0,"Осведомлённость I","Hаучно-культурная осведомленность"]
[null,4,1,{"$f":"SubTests[[#This Row],[Субтест_№]]*100+SubTests[[#This Row],[Вопрос_№]]","v":104},"Государство, не находящееся в зависимости от других государств, является …?","суверенным","малоразвитым","миролюбивым","процветающим","единым",1,1,0,0,0,0,1,null,{"$f":"IFERROR(INDEX(SubTests[[#This Row],[Балл1]:[Балл5]],1,SubTests[[#This Row],[Ответ]]),0)","v":0},1,0,0,0,"Осведомлённость I","Общественно-политическая осведомленность"]
[null,5,1,{"$f":"SubTests[[#This Row],[Субтест_№]]*100+SubTests[[#This Row],[Вопрос_№]]","v":105},"Наука о выведении лучших пород животных и сортов растений - ...?","бионика","химия","селекция","ботаника","физиология",3,0,0,1,0,0,1,null,{"$f":"IFERROR(INDEX(SubTests[[#This Row],[Балл1]:[Балл5]],1,SubTests[[#This Row],[Ответ]]),0)","v":0},2,0,0,0,"Осведомлённость I","Hаучно-культурная осведомленность"]
[null,6,1,{"$f":"SubTests[[#This Row],[Субтест_№]]*100+SubTests[[#This Row],[Вопрос_№]]","v":106},"Краткая запись, сжатое изложение содержания книги, лекции, доклада - ...?","абзац","цитата","рубрика","отрывок","конспект",5,0,0,0,0,1,1,null,{"$f":"IFERROR(INDEX(SubTests[[#This Row],[Балл1]:[Балл5]],1,SubTests[[#This Row],[Ответ]]),0)","v":0},2,0,0,0,"Осведомлённость I","Hаучно-культурная осведомленность"]
[null,7,1,{"$f":"SubTests[[#This Row],[Субтест_№]]*100+SubTests[[#This Row],[Вопрос_№]]","v":107},"Начитанность, глубокие и широкие познания - это ...?","интеллигентность","опытность","эрудиция","талант","самомнение",3,0,0,1,0,0,1,null,{"$f":"IFERROR(INDEX(SubTests[[#This Row],[Балл1]:[Балл5]],1,SubTests[[#This Row],[Ответ]]),0)","v":0},2,0,0,0,"Осведомлённость I","Hаучно-культурная осведомленность"]
[null,8,1,{"$f":"SubTests[[#This Row],[Субтест_№]]*100+SubTests[[#This Row],[Вопрос_№]]","v":108},"Отсутствие интереса и живого активного участия к окружающему - это ...?","рациональность","пассивность","чуткость","противоречивость","черствость",2,0,1,0,0,0,1,null,{"$f":"IFERROR(INDEX(SubTests[[#This Row],[Балл1]:[Балл5]],1,SubTests[[#This Row],[Ответ]]),0)","v":0},1,0,0,0,"Осведомлённость I","Общественно-политическая осведомленность"]
[null,9,1,{"$f":"SubTests[[#This Row],[Субтест_№]]*100+SubTests[[#This Row],[Вопрос_№]]","v":109},"Свод законов, относящихся к какой-либо области человеческой жизни - ...?","резолюция","постановление","традиция","кодекс","проект",4,0,0,0,1,0,1,null,{"$f":"IFERROR(INDEX(SubTests[[#This Row],[Балл1]:[Балл5]],1,SubTests[[#This Row],[Ответ]]),0)","v":0},1,0,0,0,"Осведомлённость I","Общественно-политическая осведомленность"]
[null,10,1,{"$f":"SubTests[[#This Row],[Субтест_№]]*100+SubTests[[#This Row],[Вопрос_№]]","v":110},"Противоположностью понятия \"лицемерный\" будет …?","искренний","противоречивый","фальшивый","вежливый","решительный",1,1,0,0,0,0,1,null,{"$f":"IFERROR(INDEX(SubTests[[#This Row],[Балл1]:[Балл5]],1,SubTests[[#This Row],[Ответ]]),0)","v":0},2,0,0,0,"Осведомлённость I","Hаучно-культурная осведомленность"]
[null,11,1,{"$f":"SubTests[[#This Row],[Субтест_№]]*100+SubTests[[#This Row],[Вопрос_№]]","v":111},"Если спор заканчивается взаимными уступками, тогда говорят о ...?","компромиссе","общении","объединении","переговорах","противоречии",1,1,0,0,0,0,1,null,{"$f":"IFERROR(INDEX(SubTests[[#This Row],[Балл1]:[Балл5]],1,SubTests[[#This Row],[Ответ]]),0)","v":0},1,0,0,0,"Осведомлённость I","Общественно-политическая осведомленность"]
[null,12,1,{"$f":"SubTests[[#This Row],[Субтест_№]]*100+SubTests[[#This Row],[Вопрос_№]]","v":112},"Этика - это учение о ...?","психике","морали","природе","обществе","искусстве",2,0,1,0,0,0,1,null,{"$f":"IFERROR(INDEX(SubTests[[#This Row],[Балл1]:[Балл5]],1,SubTests[[#This Row],[Ответ]]),0)","v":0},2,0,0,0,"Осведомлённость I","Hаучно-культурная осведомленность"]
[null,13,1,{"$f":"SubTests[[#This Row],[Субтест_№]]*100+SubTests[[#This Row],[Вопрос_№]]","v":113},"Противоположностью понятия \"идентичный\" будет ...?","тождественный","единственный","внушительный","различный","изолированный",4,0,0,0,1,0,1,null,{"$f":"IFERROR(INDEX(SubTests[[#This Row],[Балл1]:[Балл5]],1,SubTests[[#This Row],[Ответ]]),0)","v":0},2,0,0,0,"Осведомлённость I","Hаучно-культурная осведомленность"]
[null,14,1,{"$f":"SubTests[[#This Row],[Субтест_№]]*100+SubTests[[#This Row],[Вопрос_№]]","v":114},"Освобождение от зависимости, предрассудков, уравнение в правах - ...?","закон","эмиграция","воззрение","действие","эмансипация",5,0,0,0,0,1,1,null,{"$f":"IFERROR(INDEX(SubTests[[#This Row],[Балл1]:[Балл5]],1,SubTests[[#This Row],[Ответ]]),0)","v":0},1,0,0,0,"Осведомлённость I","Общественно-политическая осведомленность"]
[null,15,1,{"$f":"SubTests[[#This Row],[Субтест_№]]*100+SubTests[[#This Row],[Вопрос_№]]","v":115},"Оппозиция - это ...?","противодействие","согласие","мнение","политика","решение",1,1,0,0,0,0,1,null,{"$f":"IFERROR(INDEX(SubTests[[#This Row],[Балл1]:[Балл5]],1,SubTests[[#This Row],[Ответ]]),0)","v":0},1,0,0,0,"Осведомлённость I","Общественно-политическая осведомленность"]
[null,16,1,{"$f":"SubTests[[#This Row],[Субтест_№]]*100+SubTests[[#This Row],[Вопрос_№]]","v":116},"Цивилизация - это ...?","формация","древность","производство","культура","общение",4,0,0,0,1,0,1,null,{"$f":"IFERROR(INDEX(SubTests[[#This Row],[Балл1]:[Балл5]],1,SubTests[[#This Row],[Ответ]]),0)","v":0},2,0,0,0,"Осведомлённость I","Hаучно-культурная осведомленность"]
[null,17,1,{"$f":"SubTests[[#This Row],[Субтест_№]]*100+SubTests[[#This Row],[Вопрос_№]]","v":117},"Одинаковыми по смыслу являются слова \"приоритет\" и ...?","изобретение","идея","выбор","первенство","руководство",4,0,0,0,1,0,1,null,{"$f":"IFERROR(INDEX(SubTests[[#This Row],[Балл1]:[Балл5]],1,SubTests[[#This Row],[Ответ]]),0)","v":0},2,0,0,0,"Осведомлённость I","Hаучно-культурная осведомленность"]
[null,18,1,{"$f":"SubTests[[#This Row],[Субтест_№]]*100+SubTests[[#This Row],[Вопрос_№]]","v":118},"Коалиция - это ...?","конкуренция","политика","вражда","разрыв","об'единение",5,0,0,0,0,1,1,null,{"$f":"IFERROR(INDEX(SubTests[[#This Row],[Балл1]:[Балл5]],1,SubTests[[#This Row],[Ответ]]),0)","v":0},1,0,0,0,"Осведомлённость I","Общественно-политическая осведомленность"]
[null,19,1,{"$f":"SubTests[[#This Row],[Субтест_№]]*100+SubTests[[#This Row],[Вопрос_№]]","v":119},"Одинаковыми по смыслу являются слова \"альтруизм\" и ...?","человеколюбие","взаимоотношение","вежливость","эгоизм","нравственность",1,1,0,0,0,0,1,null,{"$f":"IFERROR(INDEX(SubTests[[#This Row],[Балл1]:[Балл5]],1,SubTests[[#This Row],[Ответ]]),0)","v":0},2,0,0,0,"Осведомлённость I","Hаучно-культурная осведомленность"]
[null,20,1,{"$f":"SubTests[[#This Row],[Субтест_№]]*100+SubTests[[#This Row],[Вопрос_№]]","v":120},"Человек, который скептически относится к прогрессу, является ...?","демократом","радикалом","консерватором","либералом","анархистом",3,0,0,1,0,0,1,null,{"$f":"IFERROR(INDEX(SubTests[[#This Row],[Балл1]:[Балл5]],1,SubTests[[#This Row],[Ответ]]),0)","v":0},1,0,0,0,"Осведомлённость I","Общественно-политическая осведомленность"]
[null,1,2,{"$f":"SubTests[[#This Row],[Субтест_№]]*100+SubTests[[#This Row],[Вопрос_№]]","v":201},"Прогрессивный - ...","интеллектуальный","передовой","ловкий","отсталый",null,2,0,1,0,0,0,1,null,{"$f":"IFERROR(INDEX(SubTests[[#This Row],[Балл1]:[Балл5]],1,SubTests[[#This Row],[Ответ]]),0)","v":0},1,0,0,0,"Осведомлённость II","Общественно-политическая осведомленность"]
[null,2,2,{"$f":"SubTests[[#This Row],[Субтест_№]]*100+SubTests[[#This Row],[Вопрос_№]]","v":202},"Аннулирование - ...","подписание","отмена","сообщение","отсрочка",null,2,0,1,0,0,0,1,null,{"$f":"IFERROR(INDEX(SubTests[[#This Row],[Балл1]:[Балл5]],1,SubTests[[#This Row],[Ответ]]),0)","v":0},1,0,0,0,"Осведомлённость II","Общественно-политическая осведомленность"]
[null,3,2,{"$f":"SubTests[[#This Row],[Субтест_№]]*100+SubTests[[#This Row],[Вопрос_№]]","v":203},"Идеал - ...","фантазия","будущее","мудрость","совершенство",null,4,0,0,0,1,0,1,null,{"$f":"IFERROR(INDEX(SubTests[[#This Row],[Балл1]:[Балл5]],1,SubTests[[#This Row],[Ответ]]),0)","v":0},2,0,0,0,"Осведомлённость II","Hаучно-культурная осведомленность"]
[null,4,2,{"$f":"SubTests[[#This Row],[Субтест_№]]*100+SubTests[[#This Row],[Вопрос_№]]","v":204},"Аргумент - ...","довод","согласие","спор","фраза",null,1,1,0,0,0,0,1,null,{"$f":"IFERROR(INDEX(SubTests[[#This Row],[Балл1]:[Балл5]],1,SubTests[[#This Row],[Ответ]]),0)","v":0},2,0,0,0,"Осведомлённость II","Hаучно-культурная осведомленность"]
[null,5,2,{"$f":"SubTests[[#This Row],[Субтест_№]]*100+SubTests[[#This Row],[Вопрос_№]]","v":205},"Миф - ...","древность","творчество","предание","наука",null,3,0,0,1,0,0,1,null,{"$f":"IFERROR(INDEX(SubTests[[#This Row],[Балл1]:[Балл5]],1,SubTests[[#This Row],[Ответ]]),0)","v":0},2,0,0,0,"Осведомлённость II","Hаучно-культурная осведомленность"]
[null,6,2,{"$f":"SubTests[[#This Row],[Субтест_№]]*100+SubTests[[#This Row],[Вопрос_№]]","v":206},"Аморальный - ...","устойчивый","трудный","неприятный","безнравственный",null,4,0,0,0,1,0,1,null,{"$f":"IFERROR(INDEX(SubTests[[#This Row],[Балл1]:[Балл5]],1,SubTests[[#This Row],[Ответ]]),0)","v":0},2,0,0,0,"Осведомлённость II","Hаучно-культурная осведомленность"]
[null,7,2,{"$f":"SubTests[[#This Row],[Субтест_№]]*100+SubTests[[#This Row],[Вопрос_№]]","v":207},"Анализ - ...","факты","разбор","критика","умение",null,2,0,1,0,0,0,1,null,{"$f":"IFERROR(INDEX(SubTests[[#This Row],[Балл1]:[Балл5]],1,SubTests[[#This Row],[Ответ]]),0)","v":0},2,0,0,0,"Осведомлённость II","Hаучно-культурная осведомленность"]
[null,8,2,{"$f":"SubTests[[#This Row],[Субтест_№]]*100+SubTests[[#This Row],[Вопрос_№]]","v":208},"Эталон - ...","копия","форма","основа","образец",null,4,0,0,0,1,0,1,null,{"$f":"IFERROR(INDEX(SubTests[[#This Row],[Балл1]:[Балл5]],1,SubTests[[#This Row],[Ответ]]),0)","v":0},2,0,0,0,"Осведомлённость II","Hаучно-культурная осведомленность"]
[null,9,2,{"$f":"SubTests[[#This Row],[Субтест_№]]*100+SubTests[[#This Row],[Вопрос_№]]","v":209},"Сферический - ...","продолговатый","шаровидный","пустой","объемный",null,2,0,1,0,0,0,1,null,{"$f":"IFERROR(INDEX(SubTests[[#This Row],[Балл1]:[Балл5]],1,SubTests[[#This Row],[Ответ]]),0)","v":0},2,0,0,0,"Осведомлённость II","Hаучно-культурная осведомленность"]
[null,10,2,{"$f":"SubTests[[#This Row],[Субтест_№]]*100+SubTests[[#This Row],[Вопрос_№]]","v":210},"Социальный - ...","принятый","свободный","запланированный","общественный",null,4,0,0,0,1,0,1,null,{"$f":"IFERROR(INDEX(SubTests[[#This Row],[Балл1]:[Балл5]],1,SubTests[[#This Row],[Ответ]]),0)","v":0},1,0,0,0,"Осведомлённость II","Общественно-политическая осведомленность"]
[null,11,2,{"$f":"SubTests[[#This Row],[Субтест_№]]*100+SubTests[[#This Row],[Вопрос_№]]","v":211},"Гравитация - ...","притяжение","отталкивание","невесомость","подъем",null,1,1,0,0,0,0,1,null,{"$f":"IFERROR(INDEX(SubTests[[#This Row],[Балл1]:[Балл5]],1,SubTests[[#This Row],[Ответ]]),0)","v":0},2,0,0,0,"Осведомлённость II","Hаучно-культурная осведомленность"]
[null,12,2,{"$f":"SubTests[[#This Row],[Субтест_№]]*100+SubTests[[#This Row],[Вопрос_№]]","v":212},"Сентиментальный - ...","поэтический","чувствительный","радостный","странный",null,2,0,1,0,0,0,1,null,{"$f":"IFERROR(INDEX(SubTests[[#This Row],[Балл1]:[Балл5]],1,SubTests[[#This Row],[Ответ]]),0)","v":0},2,0,0,0,"Осведомлённость II","Hаучно-культурная осведомленность"]
[null,13,2,{"$f":"SubTests[[#This Row],[Субтест_№]]*100+SubTests[[#This Row],[Вопрос_№]]","v":213},"Экспорт - ...","продажа","товары","вывоз","торговля",null,3,0,0,1,0,0,1,null,{"$f":"IFERROR(INDEX(SubTests[[#This Row],[Балл1]:[Балл5]],1,SubTests[[#This Row],[Ответ]]),0)","v":0},1,0,0,0,"Осведомлённость II","Общественно-политическая осведомленность"]
[null,14,2,{"$f":"SubTests[[#This Row],[Субтест_№]]*100+SubTests[[#This Row],[Вопрос_№]]","v":214},"Эффективный - ...","необходимый","действенный","решительный","особый",null,4,0,0,0,1,0,1,null,{"$f":"IFERROR(INDEX(SubTests[[#This Row],[Балл1]:[Балл5]],1,SubTests[[#This Row],[Ответ]]),0)","v":0},2,0,0,0,"Осведомлённость II","Hаучно-культурная осведомленность"]
[null,15,2,{"$f":"SubTests[[#This Row],[Субтест_№]]*100+SubTests[[#This Row],[Вопрос_№]]","v":215},"Мораль - ...","этика","развитие","способность","право",null,1,1,0,0,0,0,1,null,{"$f":"IFERROR(INDEX(SubTests[[#This Row],[Балл1]:[Балл5]],1,SubTests[[#This Row],[Ответ]]),0)","v":0},2,0,0,0,"Осведомлённость II","Hаучно-культурная осведомленность"]
[null,16,2,{"$f":"SubTests[[#This Row],[Субтест_№]]*100+SubTests[[#This Row],[Вопрос_№]]","v":216},"Модифицировать - ...","работать","наблюдать","изучать","видоизменять",null,4,0,0,0,1,0,1,null,{"$f":"IFERROR(INDEX(SubTests[[#This Row],[Балл1]:[Балл5]],1,SubTests[[#This Row],[Ответ]]),0)","v":0},2,0,0,0,"Осведомлённость II","Hаучно-культурная осведомленность"]
[null,17,2,{"$f":"SubTests[[#This Row],[Субтест_№]]*100+SubTests[[#This Row],[Вопрос_№]]","v":217},"Радикальный - ...","коренной","ответный","последний","отсталый",null,1,1,0,0,0,0,1,null,{"$f":"IFERROR(INDEX(SubTests[[#This Row],[Балл1]:[Балл5]],1,SubTests[[#This Row],[Ответ]]),0)","v":0},1,0,0,0,"Осведомлённость II","Общественно-политическая осведомленность"]
[null,18,2,{"$f":"SubTests[[#This Row],[Субтест_№]]*100+SubTests[[#This Row],[Вопрос_№]]","v":218},"Негативный - ...","неудачный","ложный","отрицательный","неосторожный",null,3,0,0,1,0,0,1,null,{"$f":"IFERROR(INDEX(SubTests[[#This Row],[Балл1]:[Балл5]],1,SubTests[[#This Row],[Ответ]]),0)","v":0},2,0,0,0,"Осведомлённость II","Hаучно-культурная осведомленность"]
[null,19,2,{"$f":"SubTests[[#This Row],[Субтест_№]]*100+SubTests[[#This Row],[Вопрос_№]]","v":219},"Субъективный - ...","практический","общественный","личный","скрытый",null,3,0,0,1,0,0,1,null,{"$f":"IFERROR(INDEX(SubTests[[#This Row],[Балл1]:[Балл5]],1,SubTests[[#This Row],[Ответ]]),0)","v":0},2,0,0,0,"Осведомлённость II","Hаучно-культурная осведомленность"]
[null,20,2,{"$f":"SubTests[[#This Row],[Субтест_№]]*100+SubTests[[#This Row],[Вопрос_№]]","v":220},"Аграрный - ...","местный","хозяйственный","земельный","крестьянский",null,3,0,0,1,0,0,1,null,{"$f":"IFERROR(INDEX(SubTests[[#This Row],[Балл1]:[Балл5]],1,SubTests[[#This Row],[Ответ]]),0)","v":0},1,0,0,0,"Осведомлённость II","Общественно-политическая осведомленность"]
[null,1,3,{"$f":"SubTests[[#This Row],[Субтест_№]]*100+SubTests[[#This Row],[Вопрос_№]]","v":301},"Глагол - спрягать : существительное - …","изменять","образовывать","употреблять","склонять","писать",4,0,0,0,1,0,1,null,{"$f":"IFERROR(INDEX(SubTests[[#This Row],[Балл1]:[Балл5]],1,SubTests[[#This Row],[Ответ]]),0)","v":0},0,7,0,1,"Аналогии",null,"Литература, русский язык","Функциональные отношения"]
[null,2,3,{"$f":"SubTests[[#This Row],[Субтест_№]]*100+SubTests[[#This Row],[Вопрос_№]]","v":302},"Холодно - горячо : движение - ...","инерция","покой","молекула","взаимодействие",null,2,0,1,0,0,0,1,null,{"$f":"IFERROR(INDEX(SubTests[[#This Row],[Балл1]:[Балл5]],1,SubTests[[#This Row],[Ответ]]),0)","v":0},0,4,0,2,"Аналогии",null,"Математика, физика","Противоположность"]
[null,3,3,{"$f":"SubTests[[#This Row],[Субтест_№]]*100+SubTests[[#This Row],[Вопрос_№]]","v":303},"Колумб - путешественник : землятресение - ...","первооткрыватель","образование гор","извержение","жертвы","природное явлениe",5,0,0,0,0,1,1,null,{"$f":"IFERROR(INDEX(SubTests[[#This Row],[Балл1]:[Балл5]],1,SubTests[[#This Row],[Ответ]]),0)","v":0},0,1,0,5,"Аналогии",null,"География","Род - вид"]
[null,4,3,{"$f":"SubTests[[#This Row],[Субтест_№]]*100+SubTests[[#This Row],[Вопрос_№]]","v":304},"Слагаемое - сумма : множители - ...","разность","делитель","произведение","умножение","число",3,0,0,1,0,0,1,null,{"$f":"IFERROR(INDEX(SubTests[[#This Row],[Балл1]:[Балл5]],1,SubTests[[#This Row],[Ответ]]),0)","v":0},0,7,0,2,"Аналогии",null,"Математика, физика","Функциональные отношения"]
[null,5,3,{"$f":"SubTests[[#This Row],[Субтест_№]]*100+SubTests[[#This Row],[Вопрос_№]]","v":305},"Рабовладельцы - буржуазия : рабы - ...","рабовладельческий строй","буржуазия","рабовладельцы","наемные рабочие","пленные",4,0,0,0,1,0,1,null,{"$f":"IFERROR(INDEX(SubTests[[#This Row],[Балл1]:[Балл5]],1,SubTests[[#This Row],[Ответ]]),0)","v":0},0,6,0,3,"Аналогии",null,"История","Родоположенность"]
[null,6,3,{"$f":"SubTests[[#This Row],[Субтест_№]]*100+SubTests[[#This Row],[Вопрос_№]]","v":306},"Папоротник - спора : сосна - ...","шишка","иголка","растение","семя","ель",4,0,0,0,1,0,1,null,{"$f":"IFERROR(INDEX(SubTests[[#This Row],[Балл1]:[Балл5]],1,SubTests[[#This Row],[Ответ]]),0)","v":0},0,7,0,4,"Аналогии",null,"Биология","Функциональные отношения"]
[null,7,3,{"$f":"SubTests[[#This Row],[Субтест_№]]*100+SubTests[[#This Row],[Вопрос_№]]","v":307},"Стихотворение - поэзия : рассказ - ...","книга","писатель","повесть","предложение","проза",5,0,0,0,0,1,1,null,{"$f":"IFERROR(INDEX(SubTests[[#This Row],[Балл1]:[Балл5]],1,SubTests[[#This Row],[Ответ]]),0)","v":0},0,1,0,1,"Аналогии",null,"Литература, русский язык","Род - вид"]
[null,8,3,{"$f":"SubTests[[#This Row],[Субтест_№]]*100+SubTests[[#This Row],[Вопрос_№]]","v":308},"Горы - высота : климат - ...","рельеф","температура","природа","географическая широта","растительность",2,0,1,0,0,0,1,null,{"$f":"IFERROR(INDEX(SubTests[[#This Row],[Балл1]:[Балл5]],1,SubTests[[#This Row],[Ответ]]),0)","v":0},0,7,0,5,"Аналогии",null,"География","Функциональные отношения"]
[null,9,3,{"$f":"SubTests[[#This Row],[Субтест_№]]*100+SubTests[[#This Row],[Вопрос_№]]","v":309},"Растение - стебель : клетка - ...","ядро","хромосома","белок","фермент","деление",1,1,0,0,0,0,1,null,{"$f":"IFERROR(INDEX(SubTests[[#This Row],[Балл1]:[Балл5]],1,SubTests[[#This Row],[Ответ]]),0)","v":0},0,2,0,4,"Аналогии",null,"Биология","Часть - целое"]
[null,10,3,{"$f":"SubTests[[#This Row],[Субтест_№]]*100+SubTests[[#This Row],[Вопрос_№]]","v":310},"Богатство - бедность : крепостная зависимость - ...","крепостные крестьяне","личная свобода","неравенство","частная собственность","феодальный строй",2,0,1,0,0,0,1,null,{"$f":"IFERROR(INDEX(SubTests[[#This Row],[Балл1]:[Балл5]],1,SubTests[[#This Row],[Ответ]]),0)","v":0},0,4,0,3,"Аналогии",null,"История","Противоположность"]
[null,11,3,{"$f":"SubTests[[#This Row],[Субтест_№]]*100+SubTests[[#This Row],[Вопрос_№]]","v":311},"Старт - финиш : пролог - ...","заголовок","введение","кульминация","действие","эпилог",5,0,0,0,0,1,1,null,{"$f":"IFERROR(INDEX(SubTests[[#This Row],[Балл1]:[Балл5]],1,SubTests[[#This Row],[Ответ]]),0)","v":0},0,4,0,1,"Аналогии",null,"Литература, русский язык","Противоположность"]
[null,12,3,{"$f":"SubTests[[#This Row],[Субтест_№]]*100+SubTests[[#This Row],[Вопрос_№]]","v":312},"Молния - свет : явление тяготения - ...","камень","движение","сила тяжести","вес","Земля",3,0,0,1,0,0,1,null,{"$f":"IFERROR(INDEX(SubTests[[#This Row],[Балл1]:[Балл5]],1,SubTests[[#This Row],[Ответ]]),0)","v":0},0,3,0,2,"Аналогии",null,"Математика, физика","Причина - следствие"]
[null,13,3,{"$f":"SubTests[[#This Row],[Субтест_№]]*100+SubTests[[#This Row],[Вопрос_№]]","v":313},"Первобытно-общинный строй - рабовладельческий строй : рабовладельческий строй - ...","социализм","капитализм","рабовладельцы","государство","феодализм",5,0,0,0,0,1,1,null,{"$f":"IFERROR(INDEX(SubTests[[#This Row],[Балл1]:[Балл5]],1,SubTests[[#This Row],[Ответ]]),0)","v":0},0,5,0,3,"Аналогии",null,"История","Порядок следования"]
[null,14,3,{"$f":"SubTests[[#This Row],[Субтест_№]]*100+SubTests[[#This Row],[Вопрос_№]]","v":314},"Роман - глава : стихотворение - ...","поэма","рифма","строфа","ритм","жанр",3,0,0,1,0,0,1,null,{"$f":"IFERROR(INDEX(SubTests[[#This Row],[Балл1]:[Балл5]],1,SubTests[[#This Row],[Ответ]]),0)","v":0},0,2,0,1,"Аналогии",null,"Литература, русский язык","Часть - целое"]
[null,15,3,{"$f":"SubTests[[#This Row],[Субтест_№]]*100+SubTests[[#This Row],[Вопрос_№]]","v":315},"Тепло - жизнедеятельность : кислород - ...","газ","вода","растение","развитие","дыхание",5,0,0,0,0,1,1,null,{"$f":"IFERROR(INDEX(SubTests[[#This Row],[Балл1]:[Балл5]],1,SubTests[[#This Row],[Ответ]]),0)","v":0},0,7,0,4,"Аналогии",null,"Биология","Функциональные отношения"]
[null,16,3,{"$f":"SubTests[[#This Row],[Субтест_№]]*100+SubTests[[#This Row],[Вопрос_№]]","v":316},"Фигура - треугольник : состояние вещества - ...","жидкость","движение","температура","вода","молекула",1,1,0,0,0,0,1,null,{"$f":"IFERROR(INDEX(SubTests[[#This Row],[Балл1]:[Балл5]],1,SubTests[[#This Row],[Ответ]]),0)","v":0},0,1,0,2,"Аналогии",null,"Математика, физика","Род - вид"]
[null,17,3,{"$f":"SubTests[[#This Row],[Субтест_№]]*100+SubTests[[#This Row],[Вопрос_№]]","v":317},"Роза - цветок : капиталист - ...","эксплуатация","рабочие","капитализм","класс","фабрика",4,0,0,0,1,0,1,null,{"$f":"IFERROR(INDEX(SubTests[[#This Row],[Балл1]:[Балл5]],1,SubTests[[#This Row],[Ответ]]),0)","v":0},0,1,0,3,"Аналогии",null,"История","Род - вид"]
[null,18,3,{"$f":"SubTests[[#This Row],[Субтест_№]]*100+SubTests[[#This Row],[Вопрос_№]]","v":318},"Понижение атмосферного давления - осадки : антициклон - ...","ясная погода","циклон","климат","влажность","метеослужба",1,1,0,0,0,0,1,null,{"$f":"IFERROR(INDEX(SubTests[[#This Row],[Балл1]:[Балл5]],1,SubTests[[#This Row],[Ответ]]),0)","v":0},0,3,0,5,"Аналогии",null,"География","Причина - следствие"]
[null,19,3,{"$f":"SubTests[[#This Row],[Субтест_№]]*100+SubTests[[#This Row],[Вопрос_№]]","v":319},"Прямоугольник - плоскость : куб - ...","пространство","ребро","высота","треугольник","сторона",1,1,0,0,0,0,1,null,{"$f":"IFERROR(INDEX(SubTests[[#This Row],[Балл1]:[Балл5]],1,SubTests[[#This Row],[Ответ]]),0)","v":0},0,7,0,2,"Аналогии",null,"Математика, физика","Функциональные отношения"]
[null,20,3,{"$f":"SubTests[[#This Row],[Субтест_№]]*100+SubTests[[#This Row],[Вопрос_№]]","v":320},"Война - смерть : частная собственность - ...","феодалы","капитализм","неравенство","рабы","крепостные крестьяне",3,0,0,1,0,0,1,null,{"$f":"IFERROR(INDEX(SubTests[[#This Row],[Балл1]:[Балл5]],1,SubTests[[#This Row],[Ответ]]),0)","v":0},0,3,0,3,"Аналогии",null,"История","Причина - следствие"]
[null,21,3,{"$f":"SubTests[[#This Row],[Субтест_№]]*100+SubTests[[#This Row],[Вопрос_№]]","v":321},"Числительное - количество : глагол - ...","идти","действие","причастие","часть речи","спрягать",2,0,1,0,0,0,1,null,{"$f":"IFERROR(INDEX(SubTests[[#This Row],[Балл1]:[Балл5]],1,SubTests[[#This Row],[Ответ]]),0)","v":0},0,7,0,1,"Аналогии",null,"Литература, русский язык","Функциональные отношения"]
[null,22,3,{"$f":"SubTests[[#This Row],[Субтест_№]]*100+SubTests[[#This Row],[Вопрос_№]]","v":322},"Север - юг : осадки - ...","пустыня","полюс","дождь","засуха","климат",4,0,0,0,1,0,1,null,{"$f":"IFERROR(INDEX(SubTests[[#This Row],[Балл1]:[Балл5]],1,SubTests[[#This Row],[Ответ]]),0)","v":0},0,4,0,5,"Аналогии",null,"География","Противоположность"]
[null,23,3,{"$f":"SubTests[[#This Row],[Субтест_№]]*100+SubTests[[#This Row],[Вопрос_№]]","v":323},"Диаметр - радиус : окружность - ...","дуга","сегмент","отрезок","линия","круг",1,1,0,0,0,0,1,null,{"$f":"IFERROR(INDEX(SubTests[[#This Row],[Балл1]:[Балл5]],1,SubTests[[#This Row],[Ответ]]),0)","v":0},0,2,0,2,"Аналогии",null,"Математика, физика","Часть - целое"]
[null,24,3,{"$f":"SubTests[[#This Row],[Субтест_№]]*100+SubTests[[#This Row],[Вопрос_№]]","v":324},"Эпителий - ткань : аорта - ...","сердце","внутренний орган","артерия","вена","кровь",3,0,0,1,0,0,1,null,{"$f":"IFERROR(INDEX(SubTests[[#This Row],[Балл1]:[Балл5]],1,SubTests[[#This Row],[Ответ]]),0)","v":0},0,1,0,4,"Аналогии",null,"Биология","Род - вид"]
[null,25,3,{"$f":"SubTests[[#This Row],[Субтест_№]]*100+SubTests[[#This Row],[Вопрос_№]]","v":325},"Молоток - забивать : генератор - ...","соединять","производить","включать","изменять","нагревать",2,0,1,0,0,0,1,null,{"$f":"IFERROR(INDEX(SubTests[[#This Row],[Балл1]:[Балл5]],1,SubTests[[#This Row],[Ответ]]),0)","v":0},0,7,0,2,"Аналогии",null,"Математика, физика","Функциональные отношения"]
[null,1,4,{"$f":"SubTests[[#This Row],[Субтест_№]]*100+SubTests[[#This Row],[Вопрос_№]]","v":401}," ","приставка","предлог","суффикс","окончание","корень",2,0,1,0,0,0,1,null,{"$f":"IFERROR(INDEX(SubTests[[#This Row],[Балл1]:[Балл5]],1,SubTests[[#This Row],[Ответ]]),0)","v":0},0,0,3,1,"Классификация",null,"Литература, русский язык",null,"Задания с конкретными понятиями"]
[null,2,4,{"$f":"SubTests[[#This Row],[Субтест_№]]*100+SubTests[[#This Row],[Вопрос_№]]","v":402}," ","прямая","ромб","прямоугольник","квадрат","треугольник",1,1,0,0,0,0,1,null,{"$f":"IFERROR(INDEX(SubTests[[#This Row],[Балл1]:[Балл5]],1,SubTests[[#This Row],[Ответ]]),0)","v":0},0,0,3,2,"Классификация",null,"Математика, физика",null,"Задания с конкретными понятиями"]
[null,3,4,{"$f":"SubTests[[#This Row],[Субтест_№]]*100+SubTests[[#This Row],[Вопрос_№]]","v":403}," ","барометр","флюгер","термометр","компас","азимут",5,0,0,0,0,1,1,null,{"$f":"IFERROR(INDEX(SubTests[[#This Row],[Балл1]:[Балл5]],1,SubTests[[#This Row],[Ответ]]),0)","v":0},0,0,2,5,"Классификация",null,"География",null,"Смешанные задания"]
[null,4,4,{"$f":"SubTests[[#This Row],[Субтест_№]]*100+SubTests[[#This Row],[Вопрос_№]]","v":404}," ","рабовладелец","раб","крестьянин","рабочий","ремесленник",1,1,0,0,0,0,1,null,{"$f":"IFERROR(INDEX(SubTests[[#This Row],[Балл1]:[Балл5]],1,SubTests[[#This Row],[Ответ]]),0)","v":0},0,0,3,3,"Классификация",null,"История",null,"Задания с конкретными понятиями"]
[null,5,4,{"$f":"SubTests[[#This Row],[Субтест_№]]*100+SubTests[[#This Row],[Вопрос_№]]","v":405}," ","пословица","стихотворение","поэма","рассказ","повесть",1,1,0,0,0,0,1,null,{"$f":"IFERROR(INDEX(SubTests[[#This Row],[Балл1]:[Балл5]],1,SubTests[[#This Row],[Ответ]]),0)","v":0},0,0,3,1,"Классификация",null,"Литература, русский язык",null,"Задания с конкретными понятиями"]
[null,6,4,{"$f":"SubTests[[#This Row],[Субтест_№]]*100+SubTests[[#This Row],[Вопрос_№]]","v":406}," ","цитоплазма","питание","рост","раздражимость","раздражение",1,1,0,0,0,0,1,null,{"$f":"IFERROR(INDEX(SubTests[[#This Row],[Балл1]:[Балл5]],1,SubTests[[#This Row],[Ответ]]),0)","v":0},0,0,2,4,"Классификация",null,"Биология",null,"Смешанные задания"]
[null,7,4,{"$f":"SubTests[[#This Row],[Субтест_№]]*100+SubTests[[#This Row],[Вопрос_№]]","v":407}," ","дождь","снег","осадки","иней","град",3,0,0,1,0,0,1,null,{"$f":"IFERROR(INDEX(SubTests[[#This Row],[Балл1]:[Балл5]],1,SubTests[[#This Row],[Ответ]]),0)","v":0},0,0,2,5,"Классификация",null,"География",null,"Смешанные задания"]
[null,8,4,{"$f":"SubTests[[#This Row],[Субтест_№]]*100+SubTests[[#This Row],[Вопрос_№]]","v":408}," ","треугольник","отрезок","длина","квадрат","круг",3,0,0,1,0,0,1,null,{"$f":"IFERROR(INDEX(SubTests[[#This Row],[Балл1]:[Балл5]],1,SubTests[[#This Row],[Ответ]]),0)","v":0},0,0,2,2,"Классификация",null,"Математика, физика",null,"Смешанные задания"]
[null,9,4,{"$f":"SubTests[[#This Row],[Субтест_№]]*100+SubTests[[#This Row],[Вопрос_№]]","v":409}," ","пейзаж","мозаика","икона","фреска","кисть",5,0,0,0,0,1,1,null,{"$f":"IFERROR(INDEX(SubTests[[#This Row],[Балл1]:[Балл5]],1,SubTests[[#This Row],[Ответ]]),0)","v":0},0,0,3,3,"Классификация",null,"История",null,"Задания с конкретными понятиями"]
[null,10,4,{"$f":"SubTests[[#This Row],[Субтест_№]]*100+SubTests[[#This Row],[Вопрос_№]]","v":410}," ","очерк","роман","рассказ","сюжет","повесть",4,0,0,0,1,0,1,null,{"$f":"IFERROR(INDEX(SubTests[[#This Row],[Балл1]:[Балл5]],1,SubTests[[#This Row],[Ответ]]),0)","v":0},0,0,3,1,"Классификация",null,"Литература, русский язык",null,"Задания с конкретными понятиями"]
[null,11,4,{"$f":"SubTests[[#This Row],[Субтест_№]]*100+SubTests[[#This Row],[Вопрос_№]]","v":411}," ","параллель","карта","меридиан","экватор","полюс",2,0,1,0,0,0,1,null,{"$f":"IFERROR(INDEX(SubTests[[#This Row],[Балл1]:[Балл5]],1,SubTests[[#This Row],[Ответ]]),0)","v":0},0,0,2,5,"Классификация",null,"География",null,"Смешанные задания"]
[null,12,4,{"$f":"SubTests[[#This Row],[Субтест_№]]*100+SubTests[[#This Row],[Вопрос_№]]","v":412}," ","литература","наука","живопись","зодчество","художественное ремесло",2,0,1,0,0,0,1,null,{"$f":"IFERROR(INDEX(SubTests[[#This Row],[Балл1]:[Балл5]],1,SubTests[[#This Row],[Ответ]]),0)","v":0},0,0,1,3,"Классификация",null,"История",null,"Задания с абстрактными понятиями"]
[null,13,4,{"$f":"SubTests[[#This Row],[Субтест_№]]*100+SubTests[[#This Row],[Вопрос_№]]","v":413}," ","длина","метр","масса","объем","скорость",2,0,1,0,0,0,1,null,{"$f":"IFERROR(INDEX(SubTests[[#This Row],[Балл1]:[Балл5]],1,SubTests[[#This Row],[Ответ]]),0)","v":0},0,0,2,2,"Классификация",null,"Математика, физика",null,"Смешанные задания"]
[null,14,4,{"$f":"SubTests[[#This Row],[Субтест_№]]*100+SubTests[[#This Row],[Вопрос_№]]","v":414}," ","углекислый газ","свет","вода","крахмал","хлорофилл",4,0,0,0,1,0,1,null,{"$f":"IFERROR(INDEX(SubTests[[#This Row],[Балл1]:[Балл5]],1,SubTests[[#This Row],[Ответ]]),0)","v":0},0,0,3,4,"Классификация",null,"Биология",null,"Задания с конкретными понятиями"]
[null,15,4,{"$f":"SubTests[[#This Row],[Субтест_№]]*100+SubTests[[#This Row],[Вопрос_№]]","v":415}," ","пролог","кульминация","информация","развязка","эпилог",3,0,0,1,0,0,1,null,{"$f":"IFERROR(INDEX(SubTests[[#This Row],[Балл1]:[Балл5]],1,SubTests[[#This Row],[Ответ]]),0)","v":0},0,0,1,1,"Классификация",null,"Литература, русский язык",null,"Задания с абстрактными понятиями"]
[null,16,4,{"$f":"SubTests[[#This Row],[Субтест_№]]*100+SubTests[[#This Row],[Вопрос_№]]","v":416}," ","скорость","колебания","сила","вес","плотность",2,0,1,0,0,0,1,null,{"$f":"IFERROR(INDEX(SubTests[[#This Row],[Балл1]:[Балл5]],1,SubTests[[#This Row],[Ответ]]),0)","v":0},0,0,1,2,"Классификация",null,"Математика, физика",null,"Задания с абстрактными понятиями"]
[null,17,4,{"$f":"SubTests[[#This Row],[Субтест_№]]*100+SubTests[[#This Row],[Вопрос_№]]","v":417}," ","Куба","Япония","Вьетнам","Великобритания","Исландия",3,0,0,1,0,0,1,null,{"$f":"IFERROR(INDEX(SubTests[[#This Row],[Балл1]:[Балл5]],1,SubTests[[#This Row],[Ответ]]),0)","v":0},0,0,3,5,"Классификация",null,"География",null,"Задания с конкретными понятиями"]
[null,18,4,{"$f":"SubTests[[#This Row],[Субтест_№]]*100+SubTests[[#This Row],[Вопрос_№]]","v":418}," ","товар","город","ярмарка","натуральное хозяйство","деньги",4,0,0,0,1,0,1,null,{"$f":"IFERROR(INDEX(SubTests[[#This Row],[Балл1]:[Балл5]],1,SubTests[[#This Row],[Ответ]]),0)","v":0},0,0,2,3,"Классификация",null,"История",null,"Смешанные задания"]
[null,19,4,{"$f":"SubTests[[#This Row],[Субтест_№]]*100+SubTests[[#This Row],[Вопрос_№]]","v":419}," ","описание","сравнение","характеристика","сказка","иносказание",4,0,0,0,1,0,1,null,{"$f":"IFERROR(INDEX(SubTests[[#This Row],[Балл1]:[Балл5]],1,SubTests[[#This Row],[Ответ]]),0)","v":0},0,0,1,1,"Классификация",null,"Литература, русский язык",null,"Задания с абстрактными понятиями"]
[null,20,4,{"$f":"SubTests[[#This Row],[Субтест_№]]*100+SubTests[[#This Row],[Вопрос_№]]","v":420}," ","аорта","вена","сердце","артерия","капилляр",3,0,0,1,0,0,1,null,{"$f":"IFERROR(INDEX(SubTests[[#This Row],[Балл1]:[Балл5]],1,SubTests[[#This Row],[Ответ]]),0)","v":0},0,0,3,4,"Классификация",null,"Биология",null,"Задания с конкретными понятиями"]
[null,1,5,{"$f":"SubTests[[#This Row],[Субтест_№]]*100+SubTests[[#This Row],[Вопрос_№]]","v":501},"Азия - Африка","Части света","Материки, континенты","Страны, экватор, климат",null,null,1,2,1,0,0,0,2,null,{"$f":"IFERROR(INDEX(SubTests[[#This Row],[Балл1]:[Балл5]],1,SubTests[[#This Row],[Ответ]]),0)","v":0},0,0,0,5,"Обобщение",null,"География"]
[null,2,5,{"$f":"SubTests[[#This Row],[Субтест_№]]*100+SubTests[[#This Row],[Вопрос_№]]","v":502},"Ботаника - зоология","Биология, наука о живой природе","Наука, предмет","Природа",null,null,1,2,1,0,0,0,2,null,{"$f":"IFERROR(INDEX(SubTests[[#This Row],[Балл1]:[Балл5]],1,SubTests[[#This Row],[Ответ]]),0)","v":0},0,0,0,4,"Обобщение",null,"Биология"]
[null,3,5,{"$f":"SubTests[[#This Row],[Субтест_№]]*100+SubTests[[#This Row],[Вопрос_№]]","v":503},"Феодализм - капитализм","Общественный строй, социально-экономическая формация","Общество, ступени развития","Классы, история, буржуазия, угнетение",null,null,1,2,1,0,0,0,2,null,{"$f":"IFERROR(INDEX(SubTests[[#This Row],[Балл1]:[Балл5]],1,SubTests[[#This Row],[Ответ]]),0)","v":0},0,0,0,3,"Обобщение",null,"История"]
[null,4,5,{"$f":"SubTests[[#This Row],[Субтест_№]]*100+SubTests[[#This Row],[Вопрос_№]]","v":504},"Сказка - былина","Устное народное творчество, фольклор","Литература, мудрость, творчество","Предание, выдумка, легенда, миф",null,null,1,2,1,0,0,0,2,null,{"$f":"IFERROR(INDEX(SubTests[[#This Row],[Балл1]:[Балл5]],1,SubTests[[#This Row],[Ответ]]),0)","v":0},0,0,0,1,"Обобщение",null,"Литература, русский язык"]
[null,5,5,{"$f":"SubTests[[#This Row],[Субтест_№]]*100+SubTests[[#This Row],[Вопрос_№]]","v":505},"Газ - жидкость","Состояние вещества, агрегатное состояние вещества","Вещество, состояние тела","Химия, физика",null,null,1,2,1,0,0,0,2,null,{"$f":"IFERROR(INDEX(SubTests[[#This Row],[Балл1]:[Балл5]],1,SubTests[[#This Row],[Ответ]]),0)","v":0},0,0,0,2,"Обобщение",null,"Математика, физика"]
[null,6,5,{"$f":"SubTests[[#This Row],[Субтест_№]]*100+SubTests[[#This Row],[Вопрос_№]]","v":506},"Сердце - артерия","Органы кровообращения","Внутренние органы, органы человека","Биология, сосуды, анатомия, части тела",null,null,1,2,1,0,0,0,2,null,{"$f":"IFERROR(INDEX(SubTests[[#This Row],[Балл1]:[Балл5]],1,SubTests[[#This Row],[Ответ]]),0)","v":0},0,0,0,4,"Обобщение",null,"Биология"]
[null,7,5,{"$f":"SubTests[[#This Row],[Субтест_№]]*100+SubTests[[#This Row],[Вопрос_№]]","v":507},"Копенгаген - Манагуа","Столицы","Города","Страны, острова",null,null,1,2,1,0,0,0,2,null,{"$f":"IFERROR(INDEX(SubTests[[#This Row],[Балл1]:[Балл5]],1,SubTests[[#This Row],[Ответ]]),0)","v":0},0,0,0,5,"Обобщение",null,"География"]
[null,8,5,{"$f":"SubTests[[#This Row],[Субтест_№]]*100+SubTests[[#This Row],[Вопрос_№]]","v":508},"Атом - молекула","Мельчайшие частицы вещества, состав вещества","Частицы, вещество","Состав клетки",null,null,1,2,1,0,0,0,2,null,{"$f":"IFERROR(INDEX(SubTests[[#This Row],[Балл1]:[Балл5]],1,SubTests[[#This Row],[Ответ]]),0)","v":0},0,0,0,2,"Обобщение",null,"Математика, физика"]
[null,9,5,{"$f":"SubTests[[#This Row],[Субтест_№]]*100+SubTests[[#This Row],[Вопрос_№]]","v":509},"Жиры - белки","Органические вещества","Состав вещества, вещество","Витамины, углеводы, состав клетки, молекулы",null,null,1,2,1,0,0,0,2,null,{"$f":"IFERROR(INDEX(SubTests[[#This Row],[Балл1]:[Балл5]],1,SubTests[[#This Row],[Ответ]]),0)","v":0},0,0,0,4,"Обобщение",null,"Биология"]
[null,10,5,{"$f":"SubTests[[#This Row],[Субтест_№]]*100+SubTests[[#This Row],[Вопрос_№]]","v":510},"Наука - искусство","Культура, виды деятельности","Творчество","Этика, знание, просвещение",null,null,1,2,1,0,0,0,2,null,{"$f":"IFERROR(INDEX(SubTests[[#This Row],[Балл1]:[Балл5]],1,SubTests[[#This Row],[Ответ]]),0)","v":0},0,0,0,3,"Обобщение",null,"История"]
[null,11,5,{"$f":"SubTests[[#This Row],[Субтест_№]]*100+SubTests[[#This Row],[Вопрос_№]]","v":511},"Стойкость - мужество","Положительные черты характера","Качества(черты) характера, характер","Сила, храбрость",null,null,1,2,1,0,0,0,2,null,{"$f":"IFERROR(INDEX(SubTests[[#This Row],[Балл1]:[Балл5]],1,SubTests[[#This Row],[Ответ]]),0)","v":0},0,0,0,1,"Обобщение",null,"Литература, русский язык"]
[null,12,5,{"$f":"SubTests[[#This Row],[Субтест_№]]*100+SubTests[[#This Row],[Вопрос_№]]","v":512},"Ампер - вольт","Электрические единицы измерения","Физические величины,единицы измерения","Единица, учение, прибор",null,null,1,2,1,0,0,0,2,null,{"$f":"IFERROR(INDEX(SubTests[[#This Row],[Балл1]:[Балл5]],1,SubTests[[#This Row],[Ответ]]),0)","v":0},0,0,0,2,"Обобщение",null,"Математика, физика"]
[null,13,5,{"$f":"SubTests[[#This Row],[Субтест_№]]*100+SubTests[[#This Row],[Вопрос_№]]","v":513},"Канал - плотина","Искусственные водные сооружения, водные сооружения","Сооружение, водоем, водохранилище","Вода, строение, энергия, природа",null,null,1,2,1,0,0,0,2,null,{"$f":"IFERROR(INDEX(SubTests[[#This Row],[Балл1]:[Балл5]],1,SubTests[[#This Row],[Ответ]]),0)","v":0},0,0,0,5,"Обобщение",null,"География"]
[null,14,5,{"$f":"SubTests[[#This Row],[Субтест_№]]*100+SubTests[[#This Row],[Вопрос_№]]","v":514},"Мозаика - икона","Изобразительное искусство Произведения изобразительного искусства","Искусство, творчество","Живопись, изображения, фрески, церковь",null,null,1,2,1,0,0,0,2,null,{"$f":"IFERROR(INDEX(SubTests[[#This Row],[Балл1]:[Балл5]],1,SubTests[[#This Row],[Ответ]]),0)","v":0},0,0,0,3,"Обобщение",null,"История"]
[null,15,5,{"$f":"SubTests[[#This Row],[Субтест_№]]*100+SubTests[[#This Row],[Вопрос_№]]","v":515},"Облачность - осадки","Атмосферное явление, климатические явления","Климат, явление (состояние) погоды","Циклон, природа, дождь",null,null,1,2,1,0,0,0,2,null,{"$f":"IFERROR(INDEX(SubTests[[#This Row],[Балл1]:[Балл5]],1,SubTests[[#This Row],[Ответ]]),0)","v":0},0,0,0,5,"Обобщение",null,"География"]
[null,16,5,{"$f":"SubTests[[#This Row],[Субтест_№]]*100+SubTests[[#This Row],[Вопрос_№]]","v":516},"Сумма - произведение","Результаты математических действий","Математические действия, операции с числами","Математика, решение",null,null,1,2,1,0,0,0,2,null,{"$f":"IFERROR(INDEX(SubTests[[#This Row],[Балл1]:[Балл5]],1,SubTests[[#This Row],[Ответ]]),0)","v":0},0,0,0,2,"Обобщение",null,"Математика, физика"]
[null,17,5,{"$f":"SubTests[[#This Row],[Субтест_№]]*100+SubTests[[#This Row],[Вопрос_№]]","v":517},"Иносказание - описание","Литературные приемы","Способы изложения","Творчество, рассказ, сравнение",null,null,1,2,1,0,0,0,2,null,{"$f":"IFERROR(INDEX(SubTests[[#This Row],[Балл1]:[Балл5]],1,SubTests[[#This Row],[Ответ]]),0)","v":0},0,0,0,1,"Обобщение",null,"Литература, русский язык"]
[null,18,5,{"$f":"SubTests[[#This Row],[Субтест_№]]*100+SubTests[[#This Row],[Вопрос_№]]","v":518},"Классицизм - реализм","Направления в искусстве, художественный стиль","Литературные направления","Литература, формулировка",null,null,1,2,1,0,0,0,2,null,{"$f":"IFERROR(INDEX(SubTests[[#This Row],[Балл1]:[Балл5]],1,SubTests[[#This Row],[Ответ]]),0)","v":0},0,0,0,3,"Обобщение",null,"История"]
[null,19,5,{"$f":"SubTests[[#This Row],[Субтест_№]]*100+SubTests[[#This Row],[Вопрос_№]]","v":519},"Цунами - ураган","Стихийное бедствие","Стихия","Разрушение",null,null,1,2,1,0,0,0,2,null,{"$f":"IFERROR(INDEX(SubTests[[#This Row],[Балл1]:[Балл5]],1,SubTests[[#This Row],[Ответ]]),0)","v":0},0,0,0,5,"Обобщение",null,"География"]
[null,1,6,{"$f":"SubTests[[#This Row],[Субтест_№]]*100+SubTests[[#This Row],[Вопрос_№]]","v":601},"6  9  12  15  18  21  ...",24,31,19,16,23,1,1,0,0,0,0,1,null,{"$f":"IFERROR(INDEX(SubTests[[#This Row],[Балл1]:[Балл5]],1,SubTests[[#This Row],[Ответ]]),0)","v":0},0,0,0,0,"Ряды"]
[null,2,6,{"$f":"SubTests[[#This Row],[Субтест_№]]*100+SubTests[[#This Row],[Вопрос_№]]","v":602},"9  1  7  1  5  1  ...",4,1,7,5,3,5,0,0,0,0,1,1,null,{"$f":"IFERROR(INDEX(SubTests[[#This Row],[Балл1]:[Балл5]],1,SubTests[[#This Row],[Ответ]]),0)","v":0},0,0,0,0,"Ряды"]
[null,3,6,{"$f":"SubTests[[#This Row],[Субтест_№]]*100+SubTests[[#This Row],[Вопрос_№]]","v":603},"2  3  5  6  8  9  ...",13,12,11,7,15,3,0,0,1,0,0,1,null,{"$f":"IFERROR(INDEX(SubTests[[#This Row],[Балл1]:[Балл5]],1,SubTests[[#This Row],[Ответ]]),0)","v":0},0,0,0,0,"Ряды"]
[null,4,6,{"$f":"SubTests[[#This Row],[Субтест_№]]*100+SubTests[[#This Row],[Вопрос_№]]","v":604},"10  12  9  11  8  10  …",7,11,12,5,9,1,1,0,0,0,0,1,null,{"$f":"IFERROR(INDEX(SubTests[[#This Row],[Балл1]:[Балл5]],1,SubTests[[#This Row],[Ответ]]),0)","v":0},0,0,0,0,"Ряды"]
[null,5,6,{"$f":"SubTests[[#This Row],[Субтест_№]]*100+SubTests[[#This Row],[Вопрос_№]]","v":605},"1  3  6  8  16  18  …",32,31,22,36,24,4,0,0,0,1,0,1,null,{"$f":"IFERROR(INDEX(SubTests[[#This Row],[Балл1]:[Балл5]],1,SubTests[[#This Row],[Ответ]]),0)","v":0},0,0,0,0,"Ряды"]
[null,6,6,{"$f":"SubTests[[#This Row],[Субтест_№]]*100+SubTests[[#This Row],[Вопрос_№]]","v":606},"3  4  6  9  13  18  ...",20,24,23,26,19,2,0,1,0,0,0,1,null,{"$f":"IFERROR(INDEX(SubTests[[#This Row],[Балл1]:[Балл5]],1,SubTests[[#This Row],[Ответ]]),0)","v":0},0,0,0,0,"Ряды"]
[null,7,6,{"$f":"SubTests[[#This Row],[Субтест_№]]*100+SubTests[[#This Row],[Вопрос_№]]","v":607},"15  13  16  12  17  11  ...",14,19,18,21,23,3,0,0,1,0,0,1,null,{"$f":"IFERROR(INDEX(SubTests[[#This Row],[Балл1]:[Балл5]],1,SubTests[[#This Row],[Ответ]]),0)","v":0},0,0,0,0,"Ряды"]
[null,8,6,{"$f":"SubTests[[#This Row],[Субтест_№]]*100+SubTests[[#This Row],[Вопрос_№]]","v":608},"1  2  4  8  16  32  ...",64,56,48,60,44,1,1,0,0,0,0,1,null,{"$f":"IFERROR(INDEX(SubTests[[#This Row],[Балл1]:[Балл5]],1,SubTests[[#This Row],[Ответ]]),0)","v":0},0,0,0,0,"Ряды"]
[null,9,6,{"$f":"SubTests[[#This Row],[Субтест_№]]*100+SubTests[[#This Row],[Вопрос_№]]","v":609},"1  2  5  10  17  26  ...",29,32,37,39,35,3,0,0,1,0,0,1,null,{"$f":"IFERROR(INDEX(SubTests[[#This Row],[Балл1]:[Балл5]],1,SubTests[[#This Row],[Ответ]]),0)","v":0},0,0,0,0,"Ряды"]
[null,10,6,{"$f":"SubTests[[#This Row],[Субтест_№]]*100+SubTests[[#This Row],[Вопрос_№]]","v":610},"1  4  9  16  25  36  ...",47,49,51,42,45,2,0,1,0,0,0,1,null,{"$f":"IFERROR(INDEX(SubTests[[#This Row],[Балл1]:[Балл5]],1,SubTests[[#This Row],[Ответ]]),0)","v":0},0,0,0,0,"Ряды"]
[null,11,6,{"$f":"SubTests[[#This Row],[Субтест_№]]*100+SubTests[[#This Row],[Вопрос_№]]","v":611},"1  2  6  15  31  56  ...",63,71,81,84,92,5,0,0,0,0,1,1,null,{"$f":"IFERROR(INDEX(SubTests[[#This Row],[Балл1]:[Балл5]],1,SubTests[[#This Row],[Ответ]]),0)","v":0},0,0,0,0,"Ряды"]
[null,12,6,{"$f":"SubTests[[#This Row],[Субтест_№]]*100+SubTests[[#This Row],[Вопрос_№]]","v":612},"31  24  18  13  9  6  ...",7,11,3,4,5,4,0,0,0,1,0,1,null,{"$f":"IFERROR(INDEX(SubTests[[#This Row],[Балл1]:[Балл5]],1,SubTests[[#This Row],[Ответ]]),0)","v":0},0,0,0,0,"Ряды"]
[null,13,6,{"$f":"SubTests[[#This Row],[Субтест_№]]*100+SubTests[[#This Row],[Вопрос_№]]","v":613},"174  171  57  54  18  15  ...",1,5,7,9,12,2,0,1,0,0,0,1,null,{"$f":"IFERROR(INDEX(SubTests[[#This Row],[Балл1]:[Балл5]],1,SubTests[[#This Row],[Ответ]]),0)","v":0},0,0,0,0,"Ряды"]
[null,14,6,{"$f":"SubTests[[#This Row],[Субтест_№]]*100+SubTests[[#This Row],[Вопрос_№]]","v":614},"54  19  18  14  6  9  ...",12,7,5,2,4,4,0,0,0,1,0,1,null,{"$f":"IFERROR(INDEX(SubTests[[#This Row],[Балл1]:[Балл5]],1,SubTests[[#This Row],[Ответ]]),0)","v":0},0,0,0,0,"Ряды"]
[null,15,6,{"$f":"SubTests[[#This Row],[Субтест_№]]*100+SubTests[[#This Row],[Вопрос_№]]","v":615},"301  294  49  44  11  8  ...",5,3,1,6,4,5,0,0,0,0,1,1,null,{"$f":"IFERROR(INDEX(SubTests[[#This Row],[Балл1]:[Балл5]],1,SubTests[[#This Row],[Ответ]]),0)","v":0},0,0,0,0,"Ряды"]